fUST/lending_fUST_20250717
["ID","MTS","AMOUNT","RATE_DAILY","PERIOD"]
[372638335,1752724234151,-461.77044282,0.0001816,2]
[372638336,1752724234160,-460.0,0.0001816,2]
[372638337,1752724234171,-460.0,0.0001816,2]
[372638338,1752724234181,-460.0,0.0001816,2]
[372638339,1752724234190,-460.0,0.0001816,2]
[372638340,1752724234200,-460.0,0.0001816,2]
[372638341,1752724234210,-460.0,0.0001816,2]
[372638342,1752724234220,-460.0,0.0001816,2]
[372638343,1752724234233,-461.01843989,0.0001816,2]
[372638344,1752724234242,-460.0,0.00018161,2]
[372638345,1752724234252,-460.0,0.00018161,2]
[372638346,1752724234261,-460.0,0.00018161,2]
[372638347,1752724234270,-460.0,0.00018161,2]
[372638348,1752724234280,-460.0,0.00018161,2]
[372638349,1752724234289,-460.0,0.00018161,2]
[372638350,1752724234299,-460.0,0.00018161,2]
[372638351,1752724234308,-460.0,0.00018161,2]
[372638352,1752724234318,-461.0390238,0.00018161,2]
[372638353,1752724234328,-460.0,0.00018161,2]
[372638354,1752724234338,-460.0,0.00018161,2]
[372638355,1752724234347,-461.19242602,0.00018161,2]
[372638356,1752724234357,-460.0,0.00018161,2]
[372638357,1752724234366,-460.0,0.00018161,2]
[372638358,1752724234375,-460.0,0.00018161,2]
[372638359,1752724234385,-460.0,0.00018161,2]
[372638360,1752724234397,-460.0,0.00018161,2]
[372638361,1752724234407,-460.0,0.00018161,2]
[372638362,1752724234416,-460.0,0.00018161,2]
[372638363,1752724234426,-500.0,0.00018161,2]
[372638364,1752724234435,-372.92,0.00018161,2]
[372638365,1752724234445,-460.0,0.00018161,2]
[372638366,1752724234454,-460.0,0.00018161,2]
[372638367,1752724234463,-460.0,0.00018161,2]
[372638368,1752724234475,-587.16,0.00018161,2]
[372638369,1752724234487,-460.0,0.00018161,2]
[372638370,1752724234496,-460.0,0.00018161,2]
[372638371,1752724234506,-460.0,0.00018161,2]
[372638372,1752724234515,-520.18,0.00018161,2]
[372638373,1752724234526,-460.0,0.00018161,2]
[372638374,1752724234536,-460.0,0.00018161,2]
[372638375,1752724234545,-462.63371031,0.00018161,2]
[372638376,1752724234556,-460.0,0.00018161,2]
[372638377,1752724234566,-460.0,0.00018161,2]
[372638378,1752724234575,-538.19,0.00018161,2]
[372638379,1752724234585,-460.0,0.00018162,2]
[372638380,1752724234595,-460.0,0.00018162,2]
[372638381,1752724234605,-500.0,0.00018162,2]
[372638382,1752724234614,-460.0,0.00018162,2]
[372638383,1752724234624,-460.0,0.00018162,2]
[372638384,1752724234634,-460.0,0.00018162,2]
[372638385,1752724234742,-460.0,0.00018162,2]
[372638386,1752724234752,-472.72235348,0.00018162,2]
[372638387,1752724234762,-461.43832849,0.00018162,2]
[372638388,1752724234772,-460.0,0.00018162,2]
[372638389,1752724234782,-460.0,0.00018162,2]
[372638390,1752724234792,-461.46757853,0.00018162,2]
[372638391,1752724234802,-460.0,0.00018162,2]
[372638392,1752724234811,-460.0,0.00018162,2]
[372638393,1752724234822,-460.0,0.00018162,2]
[372638394,1752724234831,-460.0,0.00018162,2]
[372638395,1752724234841,-504.04011997,0.00018162,2]
[372638396,1752724234851,-460.0,0.00018162,2]
[372638397,1752724234861,-460.0,0.00018162,2]
[372638398,1752724234871,-460.0,0.00018162,2]
[372638399,1752724234881,-460.0,0.00018162,2]
[372638400,1752724234891,-460.0,0.00018162,2]
[372638401,1752724234902,-460.0,0.00018162,2]
[372638402,1752724234914,-460.0,0.00018162,2]
[372638403,1752724234924,-460.0,0.00018162,2]
[372638404,1752724234934,-491.04695497,0.00018162,2]
[372638405,1752724234944,-460.0,0.00018162,2]
[372638406,1752724234954,-460.0,0.00018162,2]
[372638407,1752724234963,-460.0,0.00018162,2]
[372638408,1752724234974,-461.67569728,0.00018162,2]
[372638409,1752724234984,-460.0,0.00018162,2]
[372638410,1752724234993,-460.0,0.00018162,2]
[372638411,1752724235003,-460.0,0.00018162,2]
[372638412,1752724235012,-460.0,0.00018162,2]
[372638413,1752724235022,-261.5984444,0.00018162,2]
[372638414,1752724235031,-465.70056726,0.00018162,2]
[372638415,1752724235040,-460.0,0.00018162,2]
[372638416,1752724235049,-460.0,0.00018162,2]
[372638417,1752724235058,-460.0,0.00018162,2]
[372638418,1752724235068,-460.0,0.00018162,2]
[372638419,1752724235077,-460.0,0.00018162,2]
[372638420,1752724235087,-469.24,0.00018162,2]
[372638421,1752724235096,-460.0,0.00018162,2]
[372638422,1752724235106,-460.0,0.00018162,2]
[372638423,1752724235115,-460.0,0.00018162,2]
[372638424,1752724235125,-460.0,0.00018162,2]
[372638425,1752724235134,-460.0,0.00018162,2]
[372638426,1752724235143,-720.09,0.00018162,2]
[372638427,1752724235153,-460.0,0.00018162,2]
[372638428,1752724235162,-460.0,0.00018162,2]
[372638429,1752724235172,-460.0,0.00018162,2]
[372638430,1752724235182,-460.0,0.00018162,2]
[372638431,1752724235191,-460.0,0.00018162,2]
[372638432,1752724235201,-546.85,0.00018162,2]
[372638433,1752724235210,-742.27,0.00018162,2]
[372638434,1752724235219,-911.74,0.00018162,2]
[372638435,1752724235230,-460.0,0.00018162,2]
[372638436,1752724235240,-460.0,0.00018162,2]
[372638437,1752724235249,-460.0,0.00018162,2]
[372638438,1752724235259,-566.09000161,0.00018162,2]
[372638439,1752724235270,-460.0,0.00018162,2]
[372638440,1752724235279,-460.0,0.00018162,2]
[372638441,1752724235289,-460.0,0.00018162,2]
[372638442,1752724235299,-460.0,0.00018162,2]
[372638443,1752724235308,-460.0,0.00018162,2]
[372638444,1752724235317,-460.0,0.00018162,2]
[372638445,1752724235327,-460.0,0.00018162,2]
[372638446,1752724235336,-460.0,0.00018162,2]
[372638447,1752724235346,-460.0,0.00018162,2]
[372638448,1752724235357,-460.0,0.00018162,2]
[372638449,1752724235367,-460.0,0.00018162,2]
[372638450,1752724235376,-460.0,0.00018162,2]
[372638451,1752724235386,-786.36,0.00018162,2]
[372638452,1752724235395,-3638.21,0.00018162,2]
[372638453,1752724235405,-774.3,0.00018162,2]
[372638454,1752724235414,-460.0,0.00018162,2]
[372638455,1752724235423,-460.0,0.00018162,2]
[372638456,1752724235433,-1153.11,0.00018162,2]
[372638457,1752724235442,-460.0,0.00018162,2]
[372638458,1752724235451,-460.0,0.00018162,2]
[372638459,1752724235461,-460.0,0.00018162,2]
[372638460,1752724235471,-4308.79,0.00018162,2]
[372638461,1752724235483,-460.0,0.00018162,2]
[372638462,1752724235493,-528.43716426,0.00018162,2]
[372638463,1752724235502,-465.19232818,0.00018162,2]
[372638464,1752724235512,-460.0,0.00018162,2]
[372638465,1752724235523,-460.0,0.00018162,2]
[372638466,1752724235532,-382.16783322,0.00018162,2]
[372638467,1752724235542,-460.0,0.00018162,2]
[372638468,1752724235552,-461.25033409,0.00018162,2]
[372638469,1752724235561,-460.0,0.00018162,2]
[372638470,1752724235571,-460.0,0.00018162,2]
[372638471,1752724235581,-1447.25,0.00018162,2]
[372638472,1752724235590,-460.0,0.00018162,2]
[372638473,1752724235599,-460.0,0.00018162,2]
[372638474,1752724235609,-1943.84,0.00018162,2]
[372638475,1752724235619,-515.81,0.00018162,2]
[372638476,1752724235835,-460.0,0.00018162,2]
[372638477,1752724235846,-460.0,0.00018162,2]
[372638478,1752724235856,-460.0,0.00018162,2]
[372638479,1752724235865,-460.0,0.00018162,2]
[372638480,1752724235875,-460.0,0.00018162,2]
[372638481,1752724235885,-460.0,0.00018162,2]
[372638482,1752724235895,-460.0,0.00018162,2]
[372638483,1752724235905,-460.0,0.00018162,2]
[372638484,1752724235914,-460.0,0.00018162,2]
[372638485,1752724235925,-4305.31,0.00018162,2]
[372638486,1752724235935,-460.0,0.00018162,2]
[372638487,1752724235945,-460.0,0.00018162,2]
[372638488,1752724235954,-507.54,0.00018162,2]
[372638489,1752724235963,-2329.98,0.00018162,2]
[372638490,1752724235973,-460.0,0.00018162,2]
[372638491,1752724235983,-159.52404582,0.00018162,2]
[372638492,1752724235993,-460.0,0.00018162,2]
[372638493,1752724236002,-460.0,0.00018162,2]
[372638494,1752724236012,-460.0,0.00018162,2]
[372638495,1752724236022,-460.0,0.00018162,2]
[372638496,1752724236031,-461.26818392,0.00018162,2]
[372638497,1752724236041,-512.53,0.00018162,2]
[372638498,1752724236050,-460.0,0.00018162,2]
[372638499,1752724236059,-460.0,0.00018162,2]
[372638500,1752724236069,-536.55367094,0.00018162,2]
[372638501,1752724236079,-460.0,0.00018162,2]
[372638502,1752724236089,-1002.47,0.00018162,2]
[372638503,1752724236099,-312.91950656,0.00018162,2]
[372638504,1752724236108,-460.0,0.00018162,2]
[372638505,1752724236118,-460.0,0.00018162,2]
[372638506,1752724236128,-1513.0,0.00018162,2]
[372638507,1752724236138,-460.0,0.00018162,2]
[372638508,1752724236147,-460.0,0.00018162,2]
[372638509,1752724236157,-460.0,0.00018162,2]
[372638510,1752724236167,-218.70570792,0.00018163,2]
[372638511,1752724236177,-461.17555566,0.00018163,2]
[372638512,1752724236187,-460.0,0.00018163,2]
[372638513,1752724236197,-460.0,0.00018163,2]
[372638514,1752724236206,-460.0,0.00018163,2]
[372638515,1752724236215,-461.25432327,0.00018163,2]
[372638516,1752724236226,-460.0,0.00018163,2]
[372638517,1752724236235,-460.0,0.00018163,2]
[372638518,1752724236245,-460.0,0.00018163,2]
[372638519,1752724236255,-368.41945894,0.00018163,2]
[372638520,1752724236265,-460.0,0.00018163,2]
[372638521,1752724236275,-460.0,0.00018163,2]
[372638522,1752724236285,-460.0,0.00018163,2]
[372638523,1752724236294,-460.0,0.00018163,2]
[372638524,1752724236305,-460.0,0.00018163,2]
[372638525,1752724236321,-460.0,0.00018163,2]
[372638526,1752724236340,-500.0,0.00018163,2]
[372638527,1752724236356,-500.0,0.00018163,2]
[372638528,1752724236367,-460.0,0.00018163,2]
[372638529,1752724236377,-460.0,0.00018163,2]
[372638530,1752724236387,-460.0,0.00018163,2]
[372638531,1752724236395,-460.0,0.00018163,2]
[372638532,1752724236405,-831.14,0.00018163,2]
[372638533,1752724236427,-460.0,0.00018163,2]
[372638534,1752724236439,-460.0,0.00018163,2]
[372638535,1752724236450,-460.0,0.00018163,2]
[372638536,1752724236460,-460.0,0.00018163,2]
[372638537,1752724236470,-460.0,0.00018163,2]
[372638538,1752724236488,-460.0,0.00018163,2]
[372638539,1752724236498,-460.0,0.00018163,2]
[372638540,1752724236508,-460.0,0.00018163,2]
[372638541,1752724236519,-460.0,0.00018163,2]
[372638542,1752724236529,-543.85820281,0.00018163,2]
[372638543,1752724236539,-460.0,0.00018163,2]
[372638544,1752724236549,-460.0,0.00018163,2]
[372638545,1752724236558,-460.0,0.00018163,2]
[372638546,1752724236568,-460.0,0.00018163,2]
[372638547,1752724236578,-460.0,0.00018163,2]
[372638548,1752724236587,-460.0,0.00018163,2]
[372638549,1752724236596,-460.0,0.00018163,2]
[372638550,1752724236605,-460.0,0.00018164,2]
[372638551,1752724236615,-460.0,0.00018164,2]
[372638552,1752724236624,-460.0,0.00018164,2]
[372638553,1752724236634,-460.0,0.00018164,2]
[372638554,1752724236644,-290.96160332,0.00018164,2]
[372638555,1752724236654,-460.0,0.00018164,2]
[372638556,1752724236664,-450.43832849,0.00018164,2]
[372638557,1752724236673,-460.0,0.00018164,2]
[372638558,1752724236683,-558.67798886,0.00018164,2]
[372638559,1752724236695,-460.0,0.00018164,2]
[372638560,1752724236705,-460.0,0.00018164,2]
[372638561,1752724236715,-460.0,0.00018164,2]
[372638562,1752724236724,-460.0,0.00018164,2]
[372638563,1752724236733,-531.51875669,0.00018164,2]
[372638564,1752724236744,-460.0,0.00018164,2]
[372638565,1752724236754,-462.43051206,0.00018164,2]
[372638566,1752724236764,-464.5265073,0.00018164,2]
[372638567,1752724236774,-460.0,0.00018164,2]
[372638568,1752724236784,-460.0,0.00018164,2]
[372638569,1752724236793,-460.0,0.00018164,2]
[372638570,1752724236804,-190.74849843,0.00018164,2]
[372638571,1752724236813,-460.0,0.00018164,2]
[372638572,1752724236823,-460.0,0.00018164,2]
[372638573,1752724236832,-460.0,0.00018164,2]
[372638574,1752724236841,-462.265465,0.00018164,2]
[372638575,1752724236851,-460.0,0.00018164,2]
[372638576,1752724236860,-460.0,0.00018164,2]
[372638577,1752724236869,-460.0,0.00018164,2]
[372638578,1752724236879,-226.4884186,0.00018164,2]
[372638579,1752724236888,-460.0,0.00018164,2]
[372638580,1752724236898,-460.78157828,0.00018164,2]
[372638581,1752724236908,-460.0,0.00018164,2]
[372638582,1752724236917,-547.28815564,0.00018164,2]
[372638583,1752724236926,-460.0,0.00018164,2]
[372638584,1752724236936,-460.0,0.00018164,2]
[372638585,1752724236945,-460.0,0.00018164,2]
[372638586,1752724236955,-559.77725481,0.00018164,2]
[372638587,1752724236964,-460.0,0.00018164,2]
[372638588,1752724236973,-460.0,0.00018164,2]
[372638589,1752724236984,-451.58925699,0.00018164,2]
[372638590,1752724236994,-460.0,0.00018164,2]
[372638591,1752724237004,-460.0,0.00018164,2]
[372638592,1752724237013,-460.0,0.00018164,2]
[372638593,1752724237022,-460.0,0.00018164,2]
[372638594,1752724237031,-460.0,0.00018164,2]
[372638595,1752724237041,-464.95798481,0.00018164,2]
[372638596,1752724237050,-460.0,0.00018164,2]
[372638597,1752724237060,-460.0,0.00018164,2]
[372638598,1752724237069,-460.0,0.00018164,2]
[372638599,1752724237078,-460.0,0.00018164,2]
[372638600,1752724237088,-460.0,0.00018164,2]
[372638601,1752724237098,-460.0,0.00018164,2]
[372638602,1752724237108,-460.0,0.00018164,2]
[372638603,1752724237118,-460.0,0.00018164,2]
[372638604,1752724237128,-460.0,0.00018164,2]
[372638605,1752724237138,-460.0,0.00018164,2]
[372638606,1752724237149,-460.42988051,0.00018164,2]
[372638607,1752724237159,-460.0,0.00018164,2]
[372638608,1752724237170,-460.0,0.00018164,2]
[372638609,1752724237180,-500.0,0.00018165,2]
[372638610,1752724237191,-500.0,0.00018165,2]
[372638611,1752724237203,-460.0,0.00018166,2]
[372638612,1752724237213,-460.0,0.00018166,2]
[372638613,1752724237224,-460.0,0.00018166,2]
[372638614,1752724237239,-460.0,0.00018166,2]
[372638615,1752724237343,-460.0,0.00018166,2]
[372638616,1752724237354,-460.0,0.00018166,2]
[372638617,1752724237364,-500.0,0.00018171,2]
[372638618,1752724237374,-207.4,0.00018212,2]
[372638619,1752724237384,-1204.63424574,0.00018337,2]
[372638620,1752724237393,-460.0,0.00018428,2]
[372638621,1752724237404,-460.0,0.00018428,2]
[372638622,1752724237414,-460.0,0.00018428,2]
[372638623,1752724237424,-460.0,0.00018428,2]
[372638624,1752724237433,-460.0,0.00018428,2]
[372638625,1752724237443,-2496.2,0.00018428,2]
[372638626,1752724237453,-460.0,0.0001843,2]
[372638627,1752724237462,-460.0,0.0001843,2]
[372638628,1752724237472,-460.0,0.0001843,2]
[372638629,1752724237488,-460.0,0.00018431,2]
[372638630,1752724237497,-460.0,0.00018431,2]
[372638631,1752724237507,-6933.87,0.00018431,2]
[372638632,1752724237517,-460.0,0.00018431,2]
[372638633,1752724237528,-2701.51,0.00018431,2]
[372638634,1752724237538,-202.38176312,0.00018432,2]
[372638635,1752724237548,-460.0,0.00018432,2]
[372638636,1752724237558,-460.0,0.00018432,2]
[372638637,1752724237567,-460.0,0.00018432,2]
[372638638,1752724237577,-460.0,0.00018432,2]
[372638639,1752724237586,-460.0,0.00018432,2]
[372638640,1752724237596,-460.0,0.00018432,2]
[372638641,1752724237605,-460.0,0.00018432,2]
[372638642,1752724237615,-3126.5,0.00018432,2]
[372638643,1752724237624,-882.47,0.00018432,2]
[372638644,1752724237634,-535.93,0.00018432,2]
[372638645,1752724237644,-2716.76,0.00018432,2]
[372638646,1752724237653,-460.0,0.00018432,2]
[372638647,1752724237663,-460.0,0.00018432,2]
[372638648,1752724237672,-460.0,0.00018432,2]
[372638649,1752724237682,-460.0,0.00018432,2]
[372638650,1752724237692,-460.0,0.00018432,2]
[372638651,1752724237701,-460.0,0.00018432,2]
[372638652,1752724237710,-460.0,0.00018432,2]
[372638653,1752724237720,-1845.14,0.00018432,2]
[372638654,1752724237731,-460.0,0.00018432,2]
[372638655,1752724237740,-710.4,0.00018432,2]
[372638656,1752724237749,-460.0,0.00018432,2]
[372638657,1752724237759,-460.0,0.00018432,2]
[372638658,1752724237768,-460.0,0.00018432,2]
[372638659,1752724237778,-460.0,0.00018433,2]
[372638660,1752724237787,-460.0,0.00018433,2]
[372638661,1752724237797,-462.35371516,0.00018433,2]
[372638662,1752724237807,-460.0,0.00018433,2]
[372638663,1752724237817,-459.30174782,0.00018433,2]
[372638664,1752724237826,-460.0,0.00018433,2]
[372638665,1752724237836,-460.0,0.00018433,2]
[372638666,1752724237846,-460.0,0.00018433,2]
[372638667,1752724237856,-460.0,0.00018433,2]
[372638668,1752724237865,-460.0,0.00018433,2]
[372638669,1752724237875,-1704.52,0.00018433,2]
[372638670,1752724237884,-561.5,0.00018433,2]
[372638671,1752724237894,-817.1,0.00018433,2]
[372638672,1752724237902,-460.0,0.00018433,2]
[372638673,1752724237912,-460.0,0.00018433,2]
[372638674,1752724237921,-460.0,0.00018433,2]
[372638675,1752724237930,-460.0,0.00018433,2]
[372638676,1752724237939,-460.0,0.00018433,2]
[372638677,1752724237948,-704.26,0.00018433,2]
[372638679,1752724237957,-570.54,0.00018433,2]
[372638680,1752724237966,-671.64,0.00018433,2]
[372638682,1752724237976,-460.0,0.00018433,2]
[372638683,1752724237986,-1058.1,0.00018433,2]
[372638684,1752724237995,-460.0,0.00018433,2]
[372638685,1752724238003,-672.95,0.00018433,2]
[372638686,1752724238013,-460.0,0.00018433,2]
[372638687,1752724238022,-460.0,0.00018433,2]
[372638688,1752724238032,-542.11,0.00018433,2]
[372638689,1752724238041,-460.0,0.00018433,2]
[372638690,1752724238052,-460.0,0.00018433,2]
[372638691,1752724238061,-649.15,0.00018433,2]
[372638692,1752724238071,-191.12604349,0.00018433,2]
[372638693,1752724238082,-460.0,0.00018433,2]
[372638694,1752724238092,-460.0,0.00018434,2]
[372638695,1752724238102,-460.0,0.00018434,2]
[372638696,1752724238112,-460.0,0.00018434,2]
[372638697,1752724238122,-460.0,0.00018434,2]
[372638698,1752724238132,-460.0,0.00018434,2]
[372638699,1752724238142,-460.0,0.00018435,2]
[372638700,1752724238152,-460.0,0.00018435,2]
[372638701,1752724238163,-460.0,0.00018435,2]
[372638702,1752724238172,-460.0,0.00018435,2]
[372638704,1752724238183,-460.0,0.00018435,2]
[372638706,1752724238193,-460.0,0.00018435,2]
[372638707,1752724238202,-460.71393165,0.00018435,2]
[372638708,1752724238212,-460.0,0.00018435,2]
[372638709,1752724238222,-460.0,0.00018435,2]
[372638710,1752724238234,-460.0,0.00018435,2]
[372638712,1752724238244,-460.0,0.00018435,2]
[372638713,1752724238254,-464.82146395,0.00018435,2]
[372638714,1752724238264,-460.0,0.00018435,2]
[372638715,1752724238274,-587.16,0.00018435,2]
[372638716,1752724238284,-460.0,0.00018435,2]
[372638718,1752724238294,-460.0,0.00018435,2]
[372638720,1752724238303,-460.0,0.00018435,2]
[372638722,1752724238313,-520.18,0.00018435,2]
[372638724,1752724238322,-460.0,0.00018435,2]
[372638726,1752724238331,-460.0,0.00018435,2]
[372638728,1752724238340,-538.19,0.00018435,2]
[372638730,1752724238350,-460.0,0.00018436,2]
[372638732,1752724238359,-460.0,0.00018436,2]
[372638733,1752724238368,-460.0,0.00018436,2]
[372638735,1752724238378,-251.31249488,0.00018436,2]
[372638737,1752724238388,-460.0,0.00018436,2]
[372638739,1752724238397,-460.0,0.00018436,2]
[372638741,1752724238407,-460.0,0.00018436,2]
[372638743,1752724238415,-460.0,0.00018436,2]
[372638745,1752724238425,-461.51692501,0.00018436,2]
[372638747,1752724238434,-460.0,0.00018436,2]
[372638749,1752724238444,-460.0,0.00018436,2]
[372638751,1752724238453,-460.0,0.00018436,2]
[372638753,1752724238462,-460.0,0.00018436,2]
[372638755,1752724238472,-460.0,0.00018436,2]
[372638757,1752724238488,-460.0,0.00018436,2]
[372638760,1752724238497,-469.24,0.00018436,2]
[372638763,1752724238507,-460.0,0.00018436,2]
[372638767,1752724238516,-460.0,0.00018436,2]
[372638769,1752724238528,-460.0,0.00018436,2]
[372638772,1752724238540,-720.09,0.00018436,2]
[372638774,1752724238550,-460.52228148,0.00018436,2]
[372638776,1752724238559,-546.85,0.00018436,2]
[372638778,1752724238569,-742.27,0.00018436,2]
[372638780,1752724238579,-911.74,0.00018436,2]
[372638782,1752724238588,-460.0,0.00018436,2]
[372638784,1752724238597,-460.0,0.00018436,2]
[372638785,1752724238606,-460.0,0.00018436,2]
[372638786,1752724238616,-786.36,0.00018436,2]
[372638787,1752724238625,-3638.21,0.00018436,2]
[372638788,1752724238634,-774.3,0.00018436,2]
[372638789,1752724238644,-460.0,0.00018436,2]
[372638790,1752724238653,-460.0,0.00018436,2]
[372638791,1752724238664,-1153.11,0.00018436,2]
[372638793,1752724238673,-460.0,0.00018436,2]
[372638795,1752724238683,-4308.79,0.00018436,2]
[372638797,1752724238693,-460.0,0.00018436,2]
[372638799,1752724238702,-460.0,0.00018436,2]
[372638801,1752724238712,-1447.25,0.00018436,2]
[372638803,1752724238721,-460.0,0.00018436,2]
[372638806,1752724238732,-1943.84,0.00018436,2]
[372638807,1752724238742,-515.81,0.00018436,2]
[372638810,1752724238751,-460.0,0.00018436,2]
[372638812,1752724238761,-460.85462833,0.00018436,2]
[372638814,1752724238771,-460.0,0.00018436,2]
[372638816,1752724238780,-460.0,0.00018436,2]
[372638817,1752724238790,-4305.31,0.00018436,2]
[372638820,1752724238800,-460.0,0.00018436,2]
[372638821,1752724238809,-507.54,0.00018436,2]
[372638823,1752724238819,-2329.98,0.00018436,2]
[372638826,1752724238828,-460.0,0.00018436,2]
[372638828,1752724238838,-561.64665661,0.00018436,2]
[372638829,1752724238846,-460.0,0.00018436,2]
[372638832,1752724238856,-402.21040839,0.00018436,2]
[372638833,1752724238866,-512.53,0.00018436,2]
[372638835,1752724238875,-460.0,0.00018436,2]
[372638837,1752724238884,-460.0,0.00018436,2]
[372638839,1752724238894,-1002.47,0.00018436,2]
[372638842,1752724238903,-460.0,0.00018436,2]
[372638844,1752724238913,-460.0,0.00018436,2]
[372638845,1752724238922,-1513.0,0.00018436,2]
[372638848,1752724238932,-285.10366115,0.00018436,2]
[372638850,1752724238941,-460.0,0.00018436,2]
[372638851,1752724238950,-460.0,0.00018436,2]
[372638853,1752724238959,-460.0,0.00018437,2]
[372638855,1752724238969,-463.99034184,0.00018437,2]
[372638858,1752724238980,-460.0,0.00018437,2]
[372638860,1752724238989,-472.16076672,0.00018437,2]
[372638862,1752724238999,-460.0,0.00018437,2]
[372638864,1752724239008,-460.0,0.00018437,2]
[372638866,1752724239017,-500.0,0.00018437,2]
[372638867,1752724239027,-500.0,0.00018437,2]
[372638869,1752724239036,-207.6269674,0.00018437,2]
[372638871,1752724239046,-460.0,0.00018437,2]
[372638873,1752724239056,-460.0,0.00018437,2]
[372638875,1752724239065,-272.93327998,0.00018437,2]
[372638880,1752724239101,-500.0,0.00018153,2]
[372638882,1752724239111,-460.47187377,0.00018158,2]
[372638884,1752724239121,-558.20672002,0.00018437,2]
[372638886,1752724239131,-488.01963404,0.00018437,2]
[372638888,1752724239140,-460.0,0.00018437,2]
[372638890,1752724239151,-460.0,0.00018437,2]
[372638892,1752724239160,-460.0,0.00018437,2]
[372638894,1752724239170,-471.13780723,0.00018437,2]
[372638896,1752724239179,-460.0,0.00018437,2]
[372638898,1752724239189,-460.0,0.00018438,2]
[372638900,1752724239198,-460.0,0.00018438,2]
[372638902,1752724239208,-460.0,0.00018438,2]
[372638904,1752724239217,-460.0,0.00018438,2]
[372638906,1752724239227,-460.0,0.00018438,2]
[372638908,1752724239237,-460.0,0.00018438,2]
[372638910,1752724239247,-147.75478439,0.00018438,2]
[372638913,1752724239541,-312.24521561,0.00018438,2]
[372638914,1752724239551,-460.0,0.00018438,2]
[372638915,1752724239563,-460.0,0.00018438,2]
[372638916,1752724239573,-460.0,0.00018438,2]
[372638917,1752724239583,-561.08,0.00018438,2]
[372638918,1752724239592,-460.0,0.00018438,2]
[372638919,1752724239602,-451.00584761,0.00018438,2]
[372638920,1752724239611,-460.0,0.00018438,2]
[372638921,1752724239621,-460.0,0.00018438,2]
[372638922,1752724239630,-460.0,0.00018438,2]
[372638923,1752724239640,-460.0,0.00018438,2]
[372638924,1752724239649,-460.0,0.00018438,2]
[372638925,1752724239659,-460.0,0.00018438,2]
[372638926,1752724239669,-460.0,0.0001844,2]
[372638927,1752724239679,-460.0,0.0001844,2]
[372638928,1752724239688,-460.0,0.0001844,2]
[372638929,1752724239698,-7656.31386767,0.0001861,2]
[372638930,1752724239707,-428.7262742,0.00018648,2]
[372638931,1752724239718,-435.5425758,0.00018654,2]
[372638932,1752724239727,-429.1687796,0.00018654,2]
[372638933,1752724239739,-12607.95677342,0.00018689,2]
[372638934,1752724239749,-476.16111942,0.00018689,2]
[372638935,1752724239758,-160.0,0.00018689,2]
[372638936,1752724239768,-214.44804168,0.00018689,2]
[372638937,1752724239777,-160.0,0.00018689,2]
[372638938,1752724239787,-160.0,0.00018689,2]